bitfinex/quotes_SOLUSD_20240612
["timestamp","ask_amount","ask_price","bid_price","bid_amount"]
[1718235085601,260.1,154.8,154.73,7.96]
[1718235085801,260.1,154.8,154.74,7.96]
[1718235086104,7.96,154.79,154.74,7.96]
[1718235087001,260.1,154.8,154.76,7.96]
[1718235089892,260.1,154.8,154.77,7.96]
[1718235092309,260.1,154.8,154.78,7.96]
[1718235095017,260.1,154.8,154.79,7.96]
[1718235096123,0.5,154.8,154.79,7.96]
[1718235099796,0.5,154.8,154.76,0.17]
[1718235099997,0.5,154.8,154.79,7.96]
[1718235103101,0.5,154.8,154.79,8.3]
[1718235103298,0.5,154.8,154.79,8.47]
[1718235106725,0.5,154.8,154.79,25.2287]
[1718235107405,0.5,154.8,154.79,31.3895]
[1718235114131,0.5,154.8,154.79,25.0587]
[1718235115325,0.5,154.8,154.79,25.2287]
[1718235115518,0.5,154.8,154.79,25.0587]
[1718235116005,0.5,154.8,154.79,8.47]
[1718235120419,0.5,154.8,154.79,8.64]
[1718235123141,0.5,154.8,154.79,8.47]
[1718235123335,0.5,154.8,154.75,22.0936]
[1718235123541,0.5,154.8,154.75,15.9274]
[1718235123738,0.5,154.8,154.75,7.96]
[1718235123921,8.46,154.8,154.71,21.9999]
[1718235124130,8.46,154.8,154.75,7.96]
[1718235124840,8.46,154.8,154.71,21.9999]
[1718235125147,8.46,154.8,154.75,7.96]
[1718235125635,8.46,154.8,154.73,7.96]
[1718235125636,7.96,154.79,154.73,7.96]
[1718235125830,7.96,154.79,154.71,21.9999]
[1718235126154,7.96,154.78,154.72,7.96]
[1718235126319,7.96,154.74,154.69,1.123436]
[1718235126525,7.96,154.74,154.69,7.96]
[1718235126721,7.96,154.74,154.64,95.11765692]
[1718235126722,7.96,154.76,154.7,7.96]
[1718235127441,7.96,154.76,154.71,7.96]
[1718235127619,24.172,154.77,154.72,7.96]
[1718235130423,24.172,154.77,154.67,1.12388428]
[1718235130749,24.172,154.77,154.71,7.96]
[1718235131446,7.96,154.76,154.71,7.96]
[1718235132121,7.96,154.76,154.7,0.17]
[1718235132122,0.5,154.8,154.72,7.96]
[1718235132322,7.96,154.78,154.72,7.96]
[1718235136456,7.96,154.79,154.73,7.96]
[1718235139167,8.46,154.8,154.74,7.96]
[1718235139447,20.0,154.79,154.74,7.96]
[1718235139646,27.96,154.79,154.71,0.34]
[1718235139945,27.96,154.79,154.73,7.96]
[1718235140540,7.96,154.78,154.72,8.3]
[1718235141168,7.96,154.78,154.72,0.34]
[1718235141556,7.96,154.78,154.72,8.3]
[1718235144151,20.0,154.79,154.73,7.96]
[1718235144335,0.5,154.8,154.75,7.96]
[1718235144336,8.46,154.8,154.75,7.96]
[1718235145435,0.5,154.8,154.75,7.96]
[1718235145643,8.46,154.8,154.75,7.96]
[1718235146833,8.46,154.8,154.72,0.51]
[1718235146834,0.5,154.8,154.72,0.34]
[1718235147057,8.46,154.8,154.75,7.96]
[1718235147535,8.46,154.8,154.73,0.34]
[1718235147735,8.46,154.8,154.75,7.96]
[1718235150142,22.1429,154.79,154.69,16.2891]
[1718235150647,7.96,154.76,154.7,7.96]
[1718235151644,22.1429,154.79,154.71,7.96]
[1718235151850,7.96,154.78,154.72,7.96]
[1718235152685,7.96,154.77,154.71,7.96]
[1718235153550,7.96,154.78,154.72,7.96]
[1718235154766,30.1029,154.79,154.73,7.96]
[1718235154950,15.7026,154.79,154.74,7.96]
[1718235160667,15.7026,154.79,154.7,21.7353]
[1718235160668,15.7026,154.79,154.75,7.96]
[1718235161491,0.5,154.8,154.75,7.96]
[1718235161675,0.5,154.8,154.76,7.96]
[1718235162371,0.5,154.8,154.77,7.96]
[1718235162583,0.5,154.8,154.78,7.96]
[1718235164493,0.5,154.8,154.79,7.96]
[1718235165171,0.5,154.8,154.73,6.5161]
[1718235165373,0.5,154.8,154.79,7.96]
[1718235168387,0.5,154.8,154.79,8.13]
[1718235168689,0.5,154.8,154.79,8.47]
[1718235169484,0.5,154.8,154.79,0.51]
[1718235169795,0.5,154.8,154.79,8.47]
[1718235179894,0.5,154.8,154.79,8.64]
[1718235181479,0.5,154.8,154.74,5.23104017]
[1718235181683,0.5,154.8,154.79,7.96]
[1718235186599,0.5,154.8,154.78,7.96]
[1718235188176,0.5,154.8,154.79,7.96]
[1718235190006,0.5,154.8,154.76,7.96]
[1718235191109,7.96,154.79,154.72,1.12307196]
[1718235191282,7.96,154.79,154.74,7.96]
[1718235191482,23.9946,154.8,154.74,7.96]
[1718235191891,23.9946,154.8,154.75,7.96]
[1718235192689,16.0346,154.8,154.75,7.96]
[1718235195494,23.9946,154.8,154.75,7.96]
[1718235197193,7.96,154.79,154.72,0.17]
[1718235197515,16.0346,154.8,154.74,7.96]
[1718235197814,7.96,154.79,154.74,7.96]
[1718235199512,23.9946,154.8,154.74,7.96]
[1718235199700,23.9946,154.8,154.75,7.96]
[1718235200416,16.0346,154.8,154.75,7.96]
[1718235200718,16.0346,154.8,154.76,7.96]
[1718235202722,0.5,154.8,154.77,7.96]
[1718235205498,0.5,154.8,154.76,7.96]
[1718235207400,0.5,154.8,154.72,32.35]
[1718235207604,0.5,154.8,154.76,7.96]
[1718235214630,0.5,154.8,154.72,32.35]
[1718235214832,24.4626,154.79,154.7,7.50239901]
[1718235215140,7.96,154.78,154.7,1.12339901]
[1718235215436,24.4626,154.79,154.73,7.96]
[1718235216536,16.5026,154.79,154.73,7.96]
[1718235216712,24.4626,154.79,154.74,7.96]
[1718235217434,16.5026,154.79,154.74,7.96]
[1718235217629,16.5026,154.79,154.75,7.96]
[1718235219552,16.5026,154.79,154.71,0.34]
[1718235219758,16.5026,154.79,154.75,7.96]
[1718235220424,16.5026,154.79,154.73,0.17]
[1718235220627,16.5026,154.79,154.73,0.34]
[1718235220826,16.5026,154.79,154.75,7.96]
[1718235221139,16.5026,154.79,154.74,7.96]
[1718235222630,16.5026,154.79,154.75,7.96]
[1718235225621,16.5026,154.79,154.76,7.96]
[1718235226339,0.5,154.8,154.76,7.96]
[1718235226555,0.5,154.8,154.78,7.96]
[1718235229051,0.5,154.8,154.79,7.96]
[1718235235732,0.5,154.8,154.79,27.96]
[1718235241277,0.5,154.8,154.79,20.0]
[1718235241448,0.5,154.8,154.79,7.96]
[1718235241646,0.5,154.8,154.79,27.96]
[1718235248066,0.5,154.8,154.79,28.47]
[1718235248566,0.5,154.8,154.79,28.64]
[1718235264700,0.5,154.8,154.79,36.6]
[1718235265080,0.5,154.8,154.79,60.48]
[1718235265400,0.5,154.8,154.79,66.8681]
[1718235267403,259.6,154.88,154.8,0.17]
[1718235267597,21.7077,154.9,154.86,7.96]
[1718235273913,15.5883,154.9,154.86,7.96]
[1718235274612,15.5883,154.9,154.87,7.96]
[1718235274789,15.5883,154.9,154.88,7.96]
[1718235275105,289.6233,154.94,154.88,7.96]
[1718235275311,281.6633,154.94,154.88,7.96]
[1718235275508,289.6233,154.94,154.88,7.96]
[1718235277004,281.6633,154.94,154.88,7.96]
[1718235277193,289.6233,154.94,154.88,7.96]
[1718235279304,281.6633,154.94,154.88,7.96]
[1718235279511,289.6233,154.94,154.89,7.96]
[1718235280214,281.6633,154.94,154.89,7.96]
[1718235280406,289.6233,154.94,154.89,7.96]
[1718235284918,283.5119,154.94,154.89,7.96]
[1718235285824,275.5519,154.94,154.89,7.96]
[1718235287920,259.6,154.94,154.9,7.96]
[1718235288120,259.6,154.94,154.86,0.17]
[1718235288320,259.6,154.94,154.9,7.96]
[1718235288997,259.6,154.94,154.91,7.96]
[1718235289201,259.6,154.94,154.86,0.68]
[1718235289202,259.6,154.94,154.92,7.96]
[1718235289416,0.8485795,154.96,154.92,7.96]
[1718235290714,0.8485795,154.96,154.94,7.96]
[1718235291311,0.8485795,154.96,154.95,8.13]
[1718235291522,0.8485795,154.96,154.95,28.47]
[1718235292098,0.8485795,154.96,154.95,27.96]
[1718235295911,0.8485795,154.96,154.95,28.47]
[1718235296113,0.8485795,154.96,154.95,28.64]
[1718235300228,0.8485795,154.96,154.95,20.0]
[1718235300433,0.8485795,154.96,154.95,27.96]
[1718235301715,0.8485795,154.96,154.95,20.0]
[1718235303440,0.8485795,154.96,154.9,6.6411]
[1718235303640,8.8085795,154.96,154.87,15.878]
[1718235303819,8.8085795,154.96,154.91,7.96]
[1718235304318,0.8485795,154.96,154.92,7.96]
[1718235309413,0.8485795,154.96,154.93,7.96]
[1718235310927,0.8485795,154.96,154.92,7.96]
[1718235311119,0.8485795,154.96,154.93,20.0]
[1718235311432,0.8485795,154.96,154.93,27.96]
[1718235313423,0.8485795,154.96,154.93,20.0]
[1718235313630,0.8485795,154.96,154.93,7.96]
[1718235315535,0.8485795,154.96,154.94,7.96]
[1718235320326,0.8485795,154.96,154.92,0.17]
[1718235320551,0.8485795,154.96,154.91,0.17]
[1718235320757,0.8485795,154.96,154.92,7.96]
[1718235321053,0.8485795,154.96,154.93,27.96]
[1718235321758,0.8485795,154.96,154.94,7.96]
[1718235326639,0.8485795,154.96,154.95,7.96]
[1718235327843,0.8485795,154.96,154.95,8.13]
[1718235328155,0.8485795,154.96,154.95,8.64]
[1718235331548,0.8485795,154.96,154.95,28.64]
[1718235334879,0.8485795,154.96,154.95,20.68]
[1718235335072,0.8485795,154.96,154.95,8.64]
[1718235335361,0.8485795,154.96,154.95,28.64]
[1718235335565,0.8485795,154.96,154.95,27.96]
[1718235345454,0.8485795,154.96,154.95,28.47]
[1718235346878,0.8485795,154.96,154.95,28.64]
[1718235350265,281.9369,155.09,154.96,0.17]
[1718235350582,7.96,155.06,154.96,52.52]
[1718235352782,7.96,155.05,154.96,52.52]
[1718235355085,7.96,155.05,154.99,7.96]
[1718235359591,22.3369,155.09,154.99,7.96]
[1718235359881,7.96,155.06,155.0,7.96]
[1718235360261,7.96,155.05,154.99,7.96]
[1718235360877,22.3369,155.09,154.99,7.96]
[1718235361083,7.96,155.05,155.0,7.96]
[1718235361276,22.3369,155.09,155.01,7.96]
[1718235361479,7.96,155.06,155.01,7.96]
[1718235362963,22.3369,155.09,155.01,7.96]
[1718235363163,22.3369,155.09,155.02,7.96]
[1718235363363,27.96,155.08,155.02,7.96]
[1718235364179,20.0,155.08,155.02,7.96]
[1718235364385,27.96,155.08,155.02,7.96]
[1718235365187,7.96,155.08,155.02,7.96]
[1718235365591,22.3369,155.09,155.02,7.96]
[1718235365794,27.96,155.08,155.02,7.96]
[1718235365983,20.0,155.08,155.02,7.96]
[1718235366181,16.1029,155.09,155.04,7.96]
[1718235366421,7.96,155.1,155.04,7.96]
[1718235366697,7.96,155.1,155.05,7.96]
[1718235367595,7.96,155.1,155.04,7.96]
[1718235367800,7.96,155.09,155.04,7.96]
[1718235369105,0.8485795,155.11,155.04,7.96]
[1718235369288,7.96,155.09,155.04,7.96]
[1718235370508,0.8485795,155.11,155.04,7.96]
[1718235370690,7.96,155.1,155.04,7.96]
[1718235371879,0.8485795,155.11,155.04,7.96]
[1718235372073,0.8485795,155.11,155.0,6.1481]
[1718235372281,7.96,155.06,155.01,20.0]
[1718235372712,0.8485795,155.11,155.01,20.0]
[1718235372879,7.96,155.05,155.01,20.0]
[1718235373703,7.96,155.06,155.01,27.96]
[1718235374007,7.96,155.06,155.01,20.0]
[1718235374598,7.96,155.05,155.01,20.0]
[1718235375513,0.17,155.1,155.01,20.0]
[1718235375806,7.96,155.06,155.01,20.0]
[1718235377084,0.34,155.1,155.01,20.0]
[1718235377389,7.96,155.07,155.01,27.96]
[1718235379604,7.96,155.06,155.01,20.0]
[1718235379796,7.96,155.05,155.01,20.0]
[1718235380586,0.17,155.1,155.01,20.0]
[1718235380785,7.96,155.05,155.01,20.0]
[1718235381502,0.51,155.1,155.01,20.0]
[1718235381808,7.96,155.05,155.01,20.0]
[1718235382712,7.96,155.05,155.0,14.1081]
[1718235383707,7.96,155.06,155.0,14.1081]
[1718235383924,7.96,155.06,155.01,7.96]
[1718235384488,0.8485795,155.11,155.01,7.96]
[1718235384694,7.96,155.07,155.02,7.96]
[1718235385621,0.8485795,155.11,155.02,7.96]
[1718235385793,7.96,155.07,155.02,7.96]
[1718235386419,0.8485795,155.11,155.02,7.96]
[1718235386594,7.96,155.07,155.02,7.96]
[1718235389598,0.8485795,155.11,155.02,7.96]
[1718235389795,7.96,155.07,155.02,7.96]
[1718235390413,7.96,155.07,155.0,6.1481]
[1718235390624,7.96,155.07,155.01,7.96]
[1718235391226,7.96,155.07,155.0,6.1481]
[1718235391404,7.96,155.07,155.01,7.96]
[1718235391923,7.96,155.06,155.0,14.1081]
[1718235392103,0.8485795,155.11,155.01,7.96]
[1718235392299,7.96,155.08,155.02,7.96]
[1718235394222,7.96,155.07,155.0,6.1481]
[1718235394433,7.96,155.07,155.02,7.96]
[1718235394726,7.96,155.07,155.01,7.96]
[1718235396525,7.96,155.07,155.02,7.96]
[1718235398945,7.96,155.08,155.02,7.96]
[1718235399319,7.96,155.09,155.03,7.96]
[1718235401649,7.96,155.07,155.02,7.96]
[1718235402438,7.96,155.06,155.01,0.17]
[1718235402612,7.96,155.06,155.01,28.3]
[1718235402812,7.96,155.06,155.01,20.0]
[1718235403243,7.96,155.06,155.0,6.1481]
[1718235403448,7.96,155.05,155.0,14.1081]
[1718235405014,7.96,155.06,155.0,14.1081]
[1718235406641,7.96,155.06,154.98,15.8653]
[1718235406822,7.96,155.04,154.99,20.0]
[1718235407230,7.96,155.04,154.99,27.96]
[1718235409127,7.96,155.04,154.99,20.0]
[1718235410544,7.96,155.04,154.99,27.96]
[1718235413548,16.0301,155.05,154.94,1.1215479]
[1718235413750,7.96,154.99,154.94,7.96]
[1718235415428,7.96,155.0,154.95,7.96]
[1718235416837,7.96,155.0,154.94,7.96]
[1718235417046,7.96,155.0,154.95,20.0]
[1718235417954,31.84,155.04,154.95,20.0]
[1718235418163,20.0,155.03,154.95,20.0]
[1718235418471,20.0,155.03,154.95,27.96]
[1718235419856,7.96,155.01,154.95,27.96]
[1718235420247,20.0,155.03,154.95,27.96]
[1718235420443,20.0,155.04,154.96,7.96]
[1718235420658,7.96,155.01,154.96,7.96]
[1718235422666,7.96,155.0,154.95,27.96]
[1718235422866,7.96,155.0,154.93,16.1977]
[1718235423051,7.96,154.99,154.94,20.0]
[1718235425570,7.96,154.99,154.94,27.96]
[1718235425755,7.96,155.0,154.94,27.96]
[1718235426644,7.96,155.0,154.95,7.96]
[1718235427046,51.84,155.04,154.95,7.96]
[1718235427253,7.96,155.01,154.95,7.96]
[1718235428280,7.96,155.0,154.95,7.96]
[1718235431376,7.96,154.99,154.94,20.0]
[1718235435081,7.96,154.98,154.93,16.1977]
[1718235435555,7.96,154.97,154.93,16.1977]
[1718235436567,7.96,154.96,154.93,16.1977]
[1718235436773,7.96,154.97,154.93,16.1977]
[1718235439856,7.96,154.98,154.93,16.1977]
[1718235440781,7.96,154.98,154.93,24.1577]
[1718235442585,7.96,154.98,154.93,16.1977]
[1718235442784,7.96,154.94,154.87,1.12235403]
[1718235442970,7.96,154.94,154.88,7.96]
[1718235443280,7.96,154.94,154.89,7.96]
[1718235443487,7.96,154.95,154.9,7.96]
[1718235445569,7.96,154.95,154.87,0.17]
[1718235445768,7.96,154.95,154.89,7.96]
[1718235446496,7.96,154.95,154.9,7.96]
[1718235447382,7.96,154.95,154.87,0.68]
[1718235447576,7.96,154.95,154.89,7.96]
[1718235448693,7.96,154.95,154.9,7.96]
[1718235449073,21.344,154.99,154.9,7.96]
[1718235449292,7.96,154.96,154.9,7.96]
[1718235449484,7.96,154.96,154.91,7.96]
[1718235449982,7.96,154.97,154.92,7.96]
[1718235450377,7.96,154.96,154.9,16.5512]
[1718235450699,7.96,154.96,154.91,27.96]
[1718235451270,7.96,154.96,154.91,20.0]
[1718235451594,7.96,154.93,154.87,16.5512]
[1718235451776,7.96,154.93,154.88,27.96]
[1718235451968,7.96,154.93,154.88,20.0]
[1718235453768,7.96,154.93,154.88,27.96]
[1718235453968,7.96,154.94,154.88,27.96]
[1718235454168,7.96,154.94,154.88,20.0]
[1718235454398,7.96,154.94,154.88,27.96]
[1718235454774,7.96,154.94,154.89,7.96]
[1718235455592,15.0265,154.99,154.9,7.96]
[1718235455783,15.0265,154.99,154.88,20.0]
[1718235455784,7.96,154.97,154.91,7.96]
[1718235455978,7.96,154.96,154.89,0.17]
[1718235456179,7.96,154.96,154.9,7.96]
[1718235457999,7.96,154.95,154.88,20.0]
[1718235458178,7.96,154.95,154.89,7.96]
[1718235458372,7.96,154.95,154.9,20.0]
[1718235459583,15.0265,154.99,154.9,27.96]
[1718235459783,7.96,154.96,154.9,27.96]
[1718235461800,15.0265,154.99,154.9,27.96]
[1718235462008,7.96,154.96,154.9,27.96]
[1718235462573,7.96,154.97,154.91,7.96]
[1718235464402,7.96,154.96,154.9,27.96]
[1718235467085,20.0,154.98,154.9,20.0]
[1718235467282,20.0,154.98,154.89,7.96]
[1718235467283,7.96,154.95,154.89,7.96]
[1718235467483,7.96,154.95,154.9,20.0]
[1718235467814,7.96,154.94,154.9,20.0]
[1718235467986,7.96,154.94,154.89,20.0]
[1718235468886,7.96,154.94,154.89,7.96]
[1718235469110,7.96,154.94,154.9,20.0]
[1718235469489,15.1965,154.99,154.9,20.0]
[1718235469723,7.96,154.95,154.9,27.96]
[1718235473915,7.96,154.95,154.9,20.0]
[1718235474119,7.96,154.93,154.9,20.0]
[1718235474299,7.96,154.93,154.88,20.0]
[1718235478595,7.96,154.93,154.88,27.96]
[1718235479518,7.96,154.94,154.88,27.96]
[1718235480305,7.96,154.95,154.9,7.96]
[1718235480921,7.96,154.96,154.9,7.96]
[1718235483423,7.96,154.95,154.9,7.96]
[1718235483603,7.96,154.95,154.89,8.13]
[1718235485822,7.96,154.95,154.9,7.96]
[1718235489009,7.96,154.96,154.9,7.96]
[1718235489529,15.0265,154.99,154.9,7.96]
[1718235489709,7.96,154.97,154.91,7.96]
[1718235490334,15.0265,154.99,154.91,7.96]
[1718235490507,7.96,154.97,154.91,7.96]
[1718235490714,7.96,154.96,154.91,7.96]
[1718235496428,7.96,154.95,154.88,20.0]
[1718235496626,7.96,154.95,154.89,7.96]
[1718235496946,7.96,154.94,154.89,7.96]
[1718235498444,7.96,154.95,154.89,7.96]
[1718235500622,7.96,154.95,154.9,7.96]
[1718235500826,20.0,154.98,154.9,7.96]
[1718235500827,7.96,154.96,154.9,7.96]
[1718235502025,20.0,154.98,154.91,7.96]
[1718235502225,7.96,154.97,154.91,7.96]
[1718235504856,7.96,154.96,154.9,7.96]
[1718235505234,7.96,154.95,154.89,7.96]
[1718235505554,7.96,154.94,154.88,27.96]
[1718235506560,7.96,154.92,154.88,20.0]
[1718235524571,31.84,154.96,154.88,20.0]
[1718235531170,7.96,154.93,154.88,27.96]
[1718235531351,7.96,154.94,154.88,27.96]
[1718235533368,7.96,154.94,154.88,7.96]
[1718235538575,7.96,154.94,154.89,7.96]
[1718235538880,7.96,154.96,154.9,7.96]
[1718235541879,7.96,154.97,154.91,7.96]
[1718235542374,20.0,154.98,154.91,7.96]
[1718235542583,7.96,154.97,154.91,7.96]
[1718235543387,7.96,154.96,154.91,7.96]
[1718235544055,7.96,154.96,154.9,23.3302]
[1718235544256,7.96,154.95,154.9,15.3702]
[1718235544456,7.96,154.94,154.9,15.3702]
[1718235547385,7.96,154.93,154.9,15.3702]
[1718235548457,7.96,154.92,154.9,15.3702]
[1718235553893,16.0137,154.99,154.9,15.3702]
[1718235554084,7.96,154.93,154.9,15.3702]
[1718235554396,7.96,154.95,154.9,15.3702]
[1718235557286,16.0137,154.99,154.9,23.3302]
[1718235557599,7.96,154.97,154.91,7.96]
[1718235559689,7.96,154.96,154.9,23.3302]
[1718235560692,7.96,154.96,154.9,15.3702]
[1718235560896,7.96,154.96,154.9,23.3302]
[1718235569689,20.0,154.98,154.91,7.96]
[1718235569890,27.96,154.97,154.91,7.96]
[1718235570101,7.96,154.97,154.91,7.96]
[1718235574296,20.0,155.01,154.91,7.96]
[1718235574504,7.96,154.99,154.93,7.96]
[1718235574700,7.96,154.99,154.93,14.2684]
[1718235575717,7.96,154.98,154.93,14.2684]
[1718235575920,275.7305,155.03,154.93,6.3084]
[1718235576236,7.96,154.96,154.93,6.3084]
[1718235577738,0.68,155.02,154.92,20.0]
[1718235577904,7.96,154.95,154.91,20.0]
[1718235581226,20.68,155.02,154.91,20.0]
[1718235581535,7.96,154.96,154.91,20.0]
[1718235582723,7.96,154.96,154.9,23.3302]
[1718235582922,7.96,154.96,154.91,20.0]
[1718235584239,20.68,155.02,154.91,27.96]
[1718235584426,7.96,154.96,154.91,27.96]
[1718235584629,7.96,154.97,154.91,27.96]
[1718235589421,7.96,154.96,154.91,27.96]
[1718235590917,7.96,154.97,154.91,27.96]
[1718235594446,20.0,155.02,154.94,7.96]
[1718235594643,7.96,154.99,154.94,7.96]
[1718235594943,21.6739,155.06,154.97,7.96]
[1718235595235,7.96,155.01,154.95,23.9429]
[1718235595414,7.96,154.99,154.95,15.9829]
[1718235595619,7.96,154.98,154.95,15.9829]
[1718235599851,7.96,154.96,154.93,6.2255]
[1718235600434,7.96,154.94,154.91,15.9796]
[1718235600635,16.1006,155.01,154.89,6.6448]
[1718235600636,7.96,154.93,154.89,6.6448]
[1718235600848,0.17,155.0,154.89,6.6448]
[1718235600849,7.96,154.92,154.89,6.6448]
[1718235601934,0.17,155.0,154.89,14.6048]
[1718235602139,7.96,154.94,154.89,14.6048]
[1718235602335,0.51,155.0,154.89,14.6048]
[1718235602552,7.96,154.95,154.9,28.13]
[1718235606138,20.34,155.0,154.89,6.6448]
[1718235606339,7.96,154.92,154.89,6.6448]
[1718235609347,7.96,154.94,154.89,6.6448]
[1718235609757,7.96,154.94,154.89,14.6048]
[1718235611462,7.96,154.95,154.9,7.96]
[1718235611645,7.96,154.95,154.89,14.6048]
[1718235612659,7.96,154.93,154.89,6.6448]
[1718235612862,7.96,154.92,154.89,6.6448]
[1718235613259,0.17,154.99,154.89,6.6448]
[1718235613260,7.96,154.93,154.89,6.6448]
[1718235617474,7.96,154.92,154.89,6.6448]
[1718235620263,7.96,154.96,154.89,6.6448]
[1718235620446,20.0,154.95,154.89,6.6448]
[1718235620771,0.34,155.0,154.89,6.6448]
[1718235620942,7.96,154.93,154.89,6.6448]
[1718235632178,7.96,154.9,154.87,15.3187]
[1718235632363,0.17,154.95,154.84,6.0391]
[1718235632364,7.96,154.89,154.84,6.0391]
[1718235632567,0.17,154.95,154.84,6.0391]
[1718235632878,7.96,154.88,154.84,6.0391]
[1718235633871,7.96,154.87,154.84,6.0391]
[1718235636662,7.96,154.87,154.83,15.4071]
[1718235637276,7.96,154.85,154.83,15.4071]
[1718235640174,7.96,154.85,154.8,14.5789]
[1718235640384,7.96,154.84,154.8,6.6189]
[1718235642687,7.96,154.83,154.8,6.6189]
[1718235646290,7.96,154.82,154.79,15.125]
[1718235646726,7.96,154.81,154.79,15.125]
[1718235646988,7.96,154.82,154.79,15.125]
[1718235647600,48.1742,154.88,154.79,15.125]
[1718235647890,7.96,154.84,154.79,15.125]
[1718235651077,7.96,154.83,154.79,15.125]
[1718235653198,20.0,154.87,154.79,15.125]
[1718235653501,7.96,154.84,154.79,15.125]
[1718235654904,7.96,154.83,154.79,15.125]
[1718235655388,20.0,154.87,154.79,15.125]
[1718235655698,7.96,154.84,154.79,15.125]
[1718235656500,7.96,154.83,154.79,15.125]
[1718235659520,7.96,154.82,154.79,15.125]
[1718235660496,7.96,154.82,154.76,6.1378]
[1718235660696,7.96,154.81,154.77,20.0]
[1718235660894,7.96,154.81,154.76,6.1378]
[1718235661098,7.96,154.79,154.76,6.1378]
[1718235661816,0.34,154.86,154.76,6.1378]
[1718235661991,7.96,154.8,154.76,6.1378]
[1718235662186,7.96,154.79,154.76,6.1378]
[1718235662597,7.96,154.79,154.71,7.19417878]
[1718235662806,7.96,154.78,154.72,7.96]
[1718235663128,7.96,154.78,154.73,7.96]
[1718235663790,6.7029,154.85,154.75,7.96]
[1718235663991,7.96,154.8,154.75,7.96]
[1718235664413,7.96,154.79,154.74,7.96]
[1718235664602,7.96,154.79,154.72,16.1558]
[1718235664923,20.34,154.84,154.72,16.1558]
[1718235664924,7.96,154.78,154.73,20.17]
[1718235665217,20.34,154.84,154.73,28.13]
[1718235665218,7.96,154.79,154.73,28.13]
[1718235665815,7.96,154.79,154.74,7.96]
[1718235671803,7.96,154.78,154.73,27.96]
[1718235675621,7.96,154.79,154.74,7.96]